Cogmind - Beta 14 @@@ ROGUE MODE // 2024.09.07 @ 23:40:58 Player: Lunace Result: Destroyed by Autobeam Turret with Autobeam Performance ------------- Evolutions (0) 0 Regions Visited (2) 400 Robots Destroyed (33) 165 Value Destroyed (828) 828 Prototype IDs (11) 220 Alien Tech Used (0) 0 Bonus (0) 0 TOTAL SCORE: 1613 Bonus ------- None Cogmind --------- Core Integrity 0/250 Matter 205/300 Energy 48/100 System Corruption 0% Temperature Hot (223) Movement Treading (240) Ox1 Location -10/Subcaves Parts ------- > --- POWER (1) -------- Subdweller Power Source > --- PROPULSION (2) --- Light Treads Light Treads > --- UTILITY (2) ------ Large Storage Unit Gun Armor > --- WEAPON (2+2) ----- Subdweller Beam Cannon (+) Barrage Gun Battle Cannon Slug Cannon (+) > --- INVENTORY (15) --- Makeshift Flight Unit Structural Scanner Scrap Shield Scrap Shield Makeshift Hacking Suite Battle Cannon Flail Makeshift Axe Peak State ------------ > --- POWER ------------ Subdweller Power Source > --- PROPULSION ------- Light Treads Light Treads > --- UTILITY ---------- Large Storage Unit Gun Armor > --- WEAPON ----------- Subdweller Beam Cannon Barrage Gun Battle Cannon Slug Cannon > --- INVENTORY -------- Makeshift Flight Unit Structural Scanner Scrap Shield Scrap Shield Makeshift Hacking Suite Battle Cannon Flail Makeshift Axe [Rating: 27] Favorites ----------- Power Light Ion Engine Engine Light Ion Engine Propulsion Light Treads Treads Light Treads Utility Large Storage Unit Device Seismic Detector Storage Large Storage Unit Protection Gun Armor Weapon Battle Cannon Energy Gun Medium Laser Energy Cannon Subdweller Beam Cannon Ballistic Gun Barrage Gun Ballistic Cannon Battle Cannon Launcher Grenade Launcher Impact Weapon Flail Build | -11 -10 -10 ------- Run | Yrd Mat Sub Slots Evolved . | . . . Power . | . . . Propulsion . | . . . Utility . | . . . Weapon . | . . . Parts Attached 40 | 7 15 18 Power 3 | 1 . 2 Engine 3 | 1 . 2 Core . | . . . Reactor . | . . . Propulsion 5 | 2 1 2 Treads 5 | 2 1 2 Leg . | . . . Wheel . | . . . Hover . | . . . Flight . | . . . Utility 7 | 2 2 3 Device 2 | 1 1 . Storage 3 | 1 1 1 Processor . | . . . Hackware . | . . . Protection 2 | . . 2 Artifact . | . . . Weapon 25 | 2 12 11 Energy Gun 2 | 1 1 . Energy Cannon 7 | . 6 1 Ballistic Gun 4 | 1 1 2 Ballistic Cannon 5 | . . 5 Launcher 2 | . 1 1 Special Weapon . | . . . Impact Weapon 5 | . 3 2 Slashing Weapon . | . . . Piercing Weapon . | . . . Special Melee Weapon . | . . . Unidentified Prototypes . | . . . Parts Lost 2 | . 1 1 Power . | . . . Propulsion . | . . . Utility 1 | . 1 . Weapon 1 | . . 1 Highest Loss Streak 1 | . 1 1 To Critical Strikes . | . . . Average Slot Usage (%) 91 | . 99 89 Engine 12 | . 14 11 Treads 24 | . 27 23 Device 4 | . 14 1 Storage 10 | . 14 8 Protection 7 | . . 10 Energy Cannon 5 | . 10 4 Ballistic Gun 6 | . 2 8 Ballistic Cannon 12 | . . 16 Launcher 2 | . 5 . Impact Weapon 3 | . 7 2 Peak Build Rating 27 | 7 10 27 Average Rating 15 | 5 8 19 On Entrance 5 | . 7 10 Naked Turns . | . . . Heaviest Build 50 | 12 32 50 Greatest Support 40 | 40 40 40 Greatest Overweight (x) 1 | . . 1 Average Overweight (x) . | . . . Largest Inventory Capacity 15 | 8 15 15 Average Capacity 12 | 7 11 12 Most Carried 10 | 2 9 10 Average Carried 7 | 1 6 7 Final Capacity 15 | 8 15 15 Final Carried 10 | 2 7 10 Class Distribution -------------------- 72% | Mutant 27% | Derelict-Gunner Dominant Class ---------------- Mutant | -10/Materials Mutant | -10/Subcaves Resources | -11 -10 -10 ----------- Run | Yrd Mat Sub Matter Collected 1034 | 223 146 665 Remotely . | . . . Salvage Created 759 | 37 351 371 Parts 52 | 6 26 20 Haulers Intercepted 1 | . 1 . Recyclers Shooed . | . . . Parts Field Recycled . | . . . Retrieved Matter . | . . . Parts Self-Destructed 16 | . . 16 Prevented . | . . . Kills | -11 -10 -10 ------- Run | Yrd Mat Sub Combat Hostiles Destroyed 25 | . 9 16 Melee 2 | . 2 . Guns 6 | . . 6 Cannons 12 | . 3 9 AOE 3 | . 2 1 Classes Destroyed 10 | 1 6 3 Worker 1 | . 1 . Builder 1 | . 1 . Tunneler 2 | 2 . . Hauler 1 | . 1 . Turret 1 | . . 1 Watcher 2 | . 2 . Swarmer 8 | . 3 5 Grunt 9 | . 6 3 Sentry 1 | . . 1 Subdweller 7 | . . 7 Best Kill Streak 6 | 2 6 4 Combat Bots Only 5 | . 5 4 Max Kills in Single Turn 2 | 1 2 2 Gunslinging . | . . . Exploded 1 | . 1 1 Melee 1 | . 1 . Uniques/NPCs Destroyed . | . . . Combat | -11 -10 -10 -------- Run | Yrd Mat Sub Hostile Shots Fired 141 | . 34 107 Missed 46 | . 13 33 Damage Taken 1262 | . 242 1020 Core 251 | . 85 166 Absorbed by Shields . | . . . Core Remaining (%) 100 | 100 . . Volleys Fired 75 | 3 14 58 Largest 4 | 2 2 4 Hottest 195 | 70 112 195 Shots Fired 149 | 6 23 120 Gun 49 | 6 2 41 Cannon 93 | . 18 75 Launcher 7 | . 3 4 Special . | . . . Kinetic 114 | 3 1 110 Thermal 10 | 3 1 6 Explosive 7 | . 3 4 Electromagnetic 18 | . 18 . Robot Hit Streak 12 | 2 6 12 Robot Miss Streak 5 | 1 3 5 Penetration Max . | . . . Secondary Targets . | . . . Shots Hit Robots 88 | 4 20 64 Core Hits 35 | 4 11 20 Critical Kills . | . . . Critical Parts Destroyed 4 | . 4 . Critical Strikes 7 | . 4 3 Blast 3 | . . 3 Smash 4 | . 4 . Melee Attacks 55 | . 47 8 Impact 55 | . 47 8 Slashing . | . . . Piercing . | . . . Sneak Attacks 1 | . 1 . Combat Hostiles . | . . . Follow-up Attacks . | . . . Damage Inflicted 2261 | 54 785 1422 Guns 583 | 49 . 534 Cannons 922 | . 227 695 Explosions 442 | . 249 193 Melee 309 | . 309 . Ramming 5 | 5 . . Kinetic 1201 | 24 . 1177 Thermal 77 | 25 . 52 Explosive 442 | . 249 193 Electromagnetic 227 | . 227 . Impact 309 | . 309 . Slashing . | . . . Piercing . | . . . Highest Corruption . | . . . Average Corruption . | . . . Corruption Purged . | . . . Corruption Blocked . | . . . Overload Shots . | . . . Overflow Damage 185 | . 172 13 Projectiles 13 | . . 13 Explosions . | . . . Melee 172 | . 172 . Knockbacks 3 | . 1 2 Impact 1 | . 1 . Kinetic 2 | . . 2 Secondary . | . . . Self-Inflicted Damage 64 | . . 64 Shots 3 | . . 3 Rammed 1 | 1 . . Targets Rammed 1 | 1 . . Kicked . | . . . Crushed . | . . . Highest Temperature 211 | 50 84 211 Average Temperature 50 | 26 38 93 Received Heat Transfer 321 | . 48 273 Siege Activations . | . . . Robots Corrupted 2 | . 2 . Combat Hostiles 2 | . 2 . Parts Fried 5 | . 5 . Impact Corruptions 6 | . 6 . Robots Melted . | . . . Combat Hostiles . | . . . Parts Melted . | . . . Heat Transferred 148 | 74 . 74 Parts Sabotaged . | . . . Parts Stolen . | . . . Parts Stripped . | . . . Power Chain Reactions . | . . . Alert | -11 -10 -10 ------- Run | Yrd Mat Sub Peak Influence 261 | 10 261 . Initial 6 | . 6 . Average 77 | 2 88 . Maximum Alert Level 1 | . 1 . Low Security (%) 93 | 100 92 . Level 1 6 | . 7 . Level 2 . | . . . Level 3 . | . . . Level 4 . | . . . Level 5 . | . . . High Security . | . . . Max Security . | . . . Squads Dispatched 2 | . 2 . Investigation . | . . . Extermination . | . . . Reinforcement 2 | . 2 . Assault . | . . . Garrison . | . . . Intercept . | . . . Searches Triggered . | . . . Construction Impeded . | . . . Haulers Reinforced . | . . . Active Scanning Responses . | . . . Cargo Convoy Interrupts . | . . . Stealth | -11 -10 -10 --------- Run | Yrd Mat Sub Distress Signals 1 | . 1 . Communications Jammed . | . . . Distress Signals . | . . . Times Spotted 32 | . 14 18 Peak Tracking Total 4 | . 4 3 Tactical Retreats 2 | . . 2 Traps | -11 -10 -10 ------- Run | Yrd Mat Sub Traps Triggered 4 | . 3 1 Indirectly . | . . . Trap Hack Attempts . | . . . Triggered . | . . . Disarmed . | . . . Reprogrammed . | . . . Reused . | . . . Traps Extracted . | . . . Installed . | . . . Triggered . | . . . Machines | -11 -10 -10 ---------- Run | Yrd Mat Sub Machines Disabled 5 | . 2 3 Max in Single Turn 1 | . 1 1 Machines Repaired . | . . . Machines Dismantled . | . . . Machines Sabotaged . | . . . Overloaded Fab Kills . | . . . Hacking | -11 -10 -10 --------- Run | Yrd Mat Sub Machines Accessed 4 | . 2 2 Terminals 1 | . 1 . Fabricators . | . . . Repair Stations . | . . . Recycling Units 1 | . 1 . Scanalyzers . | . . . Garrison Access . | . . . Total Hacks 12 | . 6 6 Successful 7 | . 1 6 Failed 5 | . 5 . Catastrophic . | . . . Database Lockouts . | . . . Manual 3 | . 3 . Terminals 3 | . 3 . Fabricators . | . . . Repair Stations . | . . . Recycling Units 3 | . 3 . Scanalyzers . | . . . Garrison Access . | . . . Terminal Hacks 6 | . . 6 Record 5 | . . 5 Derelict Proto ID Bank 1 | . . 1 Fabricator Hacks . | . . . Repair Station Hacks . | . . . Recycling Unit Hacks . | . . . Scanalyzer . | . . . Garrison Access Hacks . | . . . Unauthorized Hacks 1 | . 1 . Terminals 1 | . 1 . Skim 1 | . 1 . Fabricators . | . . . Repair Stations . | . . . Recycling Units . | . . . Scanalyzers . | . . . Garrison Access . | . . . Data Cores Recovered . | . . . Used . | . . . Hacking Detections 2 | . 2 . Full Trace Events . | . . . Feedback Events . | . . . Feedback Blocked . | . . . Robot Schematics Acquired . | . . . Robots Built . | . . . Authchips . | . . . Time . | . . . Total Robot Build Rating . | . . . Part Schematics Acquired . | . . . Parts Built . | . . . Authchips . | . . . Time . | . . . Total Part Build Rating . | . . . Parts Repaired . | . . . Time . | . . . Parts Recycled . | . . . Recycled Matter . | . . . Retrieved Matter . | . . . Retrieved Components . | . . . Parts Scanalyzed . | . . . Part Schematics Acquired . | . . . Parts Damaged . | . . . Bothacking | -11 -10 -10 ------------ Run | Yrd Mat Sub Used RIF Installer . | . . . Robots Hacked . | . . . Non-combat . | . . . Combat . | . . . Robot Hacks Applied . | . . . Relay Couplers Released . | . . . Fabnet Peak Effective % . | . . . Robots Rewired . | . . . Allies Hacked . | . . . Hacks Repelled . | . . . Allies | -11 -10 -10 -------- Run | Yrd Mat Sub Total Allies . | . . . Largest Group . | . . . Highest-Rated Group . | . . . Highest-Rated Ally . | . . . Total Orders . | . . . Ally Attacks . | . . . Total Damage . | . . . Kills . | . . . Allies Corrupted . | . . . Allies Melted . | . . . Intel | -11 -10 -10 ------- Run | Yrd Mat Sub Robot Analysis Total . | . . . Derelict Logs Recovered 1 | . . 1 Drone Launches . | . . . Drone Recoveries . | . . . Exploration | -11 -10 -10 ------------- Run | Yrd Mat Sub Turns Passed 2789 | 112 725 1952 Spaces Moved 1251 | 59 275 917 Core 5 | 5 . . Treads 1246 | 54 275 917 Legs . | . . . Wheels . | . . . Hover . | . . . Flight . | . . . Fastest Speed 50 | 50 160 160 Average Speed 178 | 150 160 185 Slowest Speed 240 | 160 160 240 Overloaded Moves . | . . . Propulsion Burnouts . | . . . Robots Hopped . | . . . Cave-ins Triggered . | . . . Exploration Rate (%) 36 | 4 46 59 Regions Visited 2 Branch Regions 1 Pre-discovered Areas 2 | . . 2 Known Exits Taken . | . . . Unknown Exits Taken 2 | 1 1 . Scrap Searched 7 | . . 7 Spaces Dug 6 | . 6 . Terrain Destroyed 43 | . 17 26 Melee 6 | . 6 . Projectile 10 | . . 10 AOE 27 | . 11 16 Terrain Rammed . | . . . Walls Destroyed . | . . . Machines Disabled . | . . . Actions | -11 -10 -10 --------- Run | Yrd Mat Sub Total 1580 | 73 462 1045 Wait 121 | 2 99 20 Move 1249 | 58 274 917 Hop . | . . . Pick Up 17 | 2 8 7 Fast Attach 19 | 7 5 7 Attach 4 | . 1 3 Detach 3 | . . 3 Swap 17 | . 9 8 Drop 15 | . 5 10 Fire 75 | 3 14 58 Melee 55 | . 47 8 Ram . | . . . Kick . | . . . Crush 1 | 1 . . Escape Stasis . | . . . Rewire . | . . . Trap . | . . . Miscellaneous 4 | . . 4 Route ------- -11/Scrapyard -10/Materials -10/Subcaves History --------- Turn | Location | Event 27 | -11/Scrapyard | Discovered new exit (range 15) 113 | -11/Scrapyard | Entered Materials 309 | -10/Materials | Build established: Mutant 810 | -10/Materials | Discovered new exit (range 9) 838 | -10/Materials | Entered Subcaves 840 | -10/Subcaves | Shifting Twisted Machinery released Sub. Monowheel 842 | -10/Subcaves | Shifting Twisted Machinery released Sub. Machine Gun 922 | -10/Subcaves | Shifting Twisted Machinery released Battle Cannon 925 | -10/Subcaves | Shifting Twisted Machinery released Sub. Optics 993 | -10/Subcaves | Learned location of Zion (-6) 1033 | -10/Subcaves | Core integrity fell below 50% 1395 | -10/Subcaves | Visited 4L-MR0's lab 1417 | -10/Subcaves | Found Gun Armor 1419 | -10/Subcaves | Attached Gun Armor, gained temporary slots: Weapon x2 1754 | -10/Subcaves | Core integrity fell below 20% 1871 | -10/Subcaves | Visited Clippyterm 1875 | -10/Subcaves | Learned Factory trap positions 1875 | -10/Subcaves | Learned Research security intel 2168 | -10/Subcaves | Met a Zionite searching for "candidates" 2339 | -10/Subcaves | Build established: Derelict-Gunner 2544 | -10/Subcaves | A swath of the cavern ceiling suddenly collapsed 2640 | -10/Subcaves | Shifting Twisted Machinery released Sub. Machine Gun 2790 | -10/Subcaves | Destroyed by Autobeam Turret with Autobeam Last Messages --------------- 02214_ VY-OGW(R) destroyed. 02217_ Acquired 50 matter. 02222_ Dropped Lgt. Ion Engine. 02223_ Acquired Sub. Power Source. 02346_ Subatomizers dissect the Lgt. Ion Engine, destroying it. 02354_ Acquired 5 matter. 02357_ Subatomizers dissect the Sub. Monowheel. 02367_ Sub. Power Source shoots sparks and powers down. 02367_ Subatomizers dissect the Sub. Monowheel. 02544_ Y-45 Defender crushed by falling debris. 02544_ Y-45 Defender destroyed. 02544_ 13 Matter crushed. A swath of the cavern ceiling suddenly collapses. Sub. Machine Gun falls loose from the Twisted Machinery. 02781_ Slug penetrates Wall. 02788_ Machine disabled. Map ----- +----------------------------------------------------+ | ??????# #?# #????????????????????????????? | | ?????## #?? #????????????????????????????? | | ????## " #????? #????????????????????????????? | | ????# ###?????????????????????????????????? | | ????# ###???????????????????????????????? | | ????## #???????????????????????????????? | | ?????#### ####???????????????????????????????? | | ????????# ##?????????????????????????????#????? | | ????????# #####???????????????????????? # ????? | | ????????# ##???????????????????????" ????? | | ????????## #???????????????????????? ???? | | ?????????# #???????????????????????? ???? | | ?????????# #?###???????????????????? #### | | ????????## ## ##??????????" "????## "" | | ?????#### ##????????# ????## ""[ | | ????## ##???####; ???# "" | | ????# #??? # % ???# | | ????##### ##?##%" %???# # | | ????????# #??#"%[; t"??# #? | | ???????## #??" % %; ??# ##? | | ???????# #??#& %%;; ???## #?? | | ???????# ##??!% ;;; ??????## #?? | | ???????# ######%=&; ########??## ##? | | ???????## #?# ;& & # ## ##?# #? | | ???????# # ### ## #?# #? | | ???????# ## @ #??# ??## ##? | | ???????## ## #?## #???# ##? | | ???????## #### #?# ##??## #? | | ???????# ### ###?# #??# #? | | ???????## ## ######???## ##### ## | | ????????# ## ###?????#### | | ????????## #### ##?????### | | ?????????# #### ##??????# | | ?????????#### #??????## #### #### | | ????????????#### ##????## ##### #### ## | | ???????????????## #????# #"""## ## ##?# | | ????????????????# ##???## #"" ## ##?? | | ????????????????## ##### ##"X ### | | ?????????????????## # " ##"" ## ### | | ??????????????????### & " " ##"""### #?# | | ???????????????????# # #####?# #### | | ???????????????????### "& #?????## ## | | ?????????????????????# " # #????### | | ?????????????????????###### ##????# ### | | ??????????????????????????####?????# ### | | ??????????????????????????????????## # | | ??????????????????????????????????# ## # | | ?????????????????????????????????## ## | | ???????????????????????????????### | | ??????????????????????????????## ## | +----------------------------------------------------+ Best States ------------- Heat Dissipation 25 Energy Generation 15 Energy Capacity 200 Matter Stores 300 Matter Capacity 300 Sight Range 16 Terrain Scan Density 10 Armor Coverage 800 Evasion (%) 40 Recoil Reduction 2 Item Schematics ----------------- None Robot Schematics ------------------ None Fabricated ------------ Nothing Alien Tech Used ----------------- None Achievements -------------- None Challenges ------------ None Game ------ Seed DirtyRecyclingMultitool Manual? 0 Play Time 00:18:14 Cumulative 337.6 hours Start 2024.09.07 @ 23:24:24 End 2024.09.07 @ 23:40:58 Sessions 1 Manual Loads 0 Difficulty Rogue Special Mode None Game No. 344 Rogue 339 Adventurer 5 Explorer 0 Win Type - Total 5 Types 4/0/0/1/0/0/0/0/0 Lore% 77 Gallery% 83 Achievement% 67 Wizard Run 0 Options --------- Layout 1 ASCII 0 Keyboard 0 Movement Arrows Keybinds 0 Fullscreen 1 Font 24/Terminus Map View 50x35 Zoom Use 0% Tactical HUD 1 Map Filters NONE Filters NONE Steam 1 RUN: 46318046-f3df-4fb7-8872-ced39e203147